{"text_format":"1","workbook":"xlsx","n_sheets":3,"sheets":["1999_00-Deutsch","CF Deutsch","CF_AR"],"not_rendered":{"charts":0,"images":0,"macros":0,"external_links":0,"defined_names":11,"comments":0,"pivot_tables":0},"unopened":[],"bounds":{"document_bytes":16777216,"sheet_cells":100000,"rows_first":2000,"rows_last":500,"rows_between":2000,"halvings":0,"cell_chars":16384,"cell_head_chars":4096},"cells_cut":0,"cells_raw":0,"read":"whole","date_system":"1904"}

{"sheet":"1999_00-Deutsch","index":0,"n_rows":68,"n_cols":9,"rows_kept":68,"cut":false,"hidden":true,"merged":[]}
["Asclepion-Meditec AG"]
["Kapitalflussrechnung"]
["für die Geschäftsjahre zum 30. September 2000 und 2001"]
[]
[null,null,null,null,null,null,1.95583]
[null,null,null,null,null,null,"30. September",null,"30. September"]
[null,null,null,null,null,null,2000,null,2001]
[null,null,null,null,null,null,"TDM",null,"TDM"]
[]
[]
["Cash Flow aus laufender Geschäftstätigkeit:"]
[null,"Jahresüberschuss ",null,null,null,null,3827,null,-14865]
[null,"Anpassung zur Überleitung des Jahresüberschusses/Jahresfehlbetrags"]
[null,"zur Nettoveränderung der liquiden Mittel aus laufender Geschäftstätigkeit:"]
[null,null,"Abschreibungen",null,null,null,2273,null,2334]
[null,null,"Verluste /(Gewinne) aus Abgang von Sachanlagevermögen",null,null,null,-72,null,85]
[null,null,"Zahlungsunwirksame Erträge",null,null,null,0,null,{"$f":"-(4418+5400+4271+794)","v":-14883}]
[null,null,"Zuführung zu Wertberichtigungen",null,null,null,0,null,13190]
[null,null,"Auswirkung von Wechselkursänderungen",null,null,null,-1815,null,0]
[null,null,"Anpassung Ertragsteuern für Kosten im Zusammenhang mit dem Börsengang",null,null,null,5291,null,0]
[null,null,"Latente Steuern",null,null,null,-706,null,{"$f":"-4271+505","v":-3766}]
[null,null,"Veränderung bei Vermögensgegenständen und Verbindlichkeiten:"]
[null,null,"Erhöhung der Forderungen an verbundene Unternehmen","(Erhöhung) / Verringerung der Forderungen"]
[null,null,null,null,"und Dritte",null,-23032,null,-3319]
[null,null,"Erhöhung Vorräte","Erhöhung Vorräte",null,null,-1529,null,-8688]
[null,null,"(Erhöhung) / Verringerung der aktiven Rechnungs-","(Erhöhung) / Verringerung der aktiven Rechnungs-"]
[null,null,null,null,"abgrenzung und sonstiger Vermögensgegenstände",null,-1432,null,-4835]
[null,null,"(Erhöhung) / Verringerung aktivierter Börseneinführungskosten","Erhöhung aktivierter Börseneinführungskosten",null,null,500,null,0]
[null,null,"Erhöhung / (Verringerung) der Verbindlichkeiten","Erhöhung / (Verringerung) der Verbindlichkeiten"]
[null,null,null,null,"an verbundene Unternehmen und Dritte",null,1616,null,{"$f":"-523","v":-523}]
[null,null,"Erhöhung / (Verringerung) der Rückstellungen, passiven ","Erhöhung / (Verringerung) der Rückstellungen, passiven "]
[null,null,null,null,"Rechnungsabgrenzungen und sonstigen Verbindlichkeiten",null,3088,null,1311]
[null,null,null,null,"Gesamte Anpassungen",null,{"$f":"SUM(G15:G32)-1","v":-15819},null,{"$f":"SUM(I15:I32)","v":-19094}]
[null,null,null,"    Netto-Kapitalzufluss (-abfluss) aus laufender Geschäftstätigkeit","Netto-Kapitalabfluss aus laufender Geschäftstätigkeit",null,{"$f":"+G12+G33","v":-11992},null,{"$f":"+I12+I33","v":-33959}]
["Cash Flow aus der Investitionstätigkeit:"]
[null,"Erwerb von Sachanlagevermögen",null,null,null,null,-2255,null,-17862]
[null,"Erlöse aus dem Verkauf von Sachanlagevermögen",null,null,null,null,125,null,14]
[null,"Erwerb von Minderheitenbeteiligungen an nahestehenden Unternehmen",null,null,null,null,-3548,null,-1301]
[null,"Gewährung von Darlehen",null,null,null,null,-113,null,-6984]
[null,null,null,null,"Netto-Kapitalabfluss aus Investitionstätigkeit",null,{"$f":"SUM(G36:G39)","v":-5791},null,{"$f":"SUM(I36:I39)","v":-26133}]
["Cash Flow aus Finanzierungstätigkeit:"]
[null,"Einnahmen aus der Ausgabe von Stückaktien",null,null,null,null,113994,null,0]
[null,"Aufnahme kurzfristiger Kredite",null,null,null,null,86,null,3162]
[null,"Rückzahlung kurzfristiger Kredite",null,null,null,null,-29386,null,-86]
[null,"Aufnahme langfristiger Kredite",null,null,null,null,125,null,10500]
[null,"Rückzahlung langfristiger Kredite",null,null,null,null,-1914,null,-90]
[null,"Rückzahlungen unter Leasingverträgen",null,null,null,null,-80,null,-686]
[null,"Erlöse aus Sale/Leaseback Transaktion",null,null,null,null,980,null,2681]
[null,null,null,null,"Netto-Kapitalzufluss aus Finanzierungstätigkeit",null,{"$f":"SUM(G42:G48)","v":83805},null,{"$f":"SUM(I42:I48)","v":15481}]
["Auswirkung von Wechselkursänderungen",null,null,null,null,null,-10,null,23]
["Netto-Erhöhung (Verringerung) der liquiden Mittel",null,null,null,null,null,{"$f":"+G34+G40+G49+G50-1","v":66011},null,{"$f":"+I34+I40+I49+I50","v":-44588}]
["Liquide Mittel am Jahresbeginn",null,null,null,null,null,168,null,66179]
["Liquide Mittel am Jahresende",null,null,null,null,null,{"$f":"+G51+G52","v":66179},null,{"$f":"+I51+I52","v":21591}]
[]
["Ergänzende Angaben zum Cash Flow:"]
[null,"gezahlte Zinsen",null,null,null,null,361.99465188692267,null,850]
[null,"gezahlte Steuern vom Einkommen und Ertrag",null,null,null,null,1012.3579247685126,null,1265]
[]
["Nicht zahlungswirksame Investitions- und Finanzierungstätigkeiten"]
[null,"Umwandlung der Kapitalrücklage in Grundkapital",null,null,null,null,3748.7920729306738,null,0]
[null,"Umwandlung Verbindlichkeiten für deferred shares in Grundkapital",null,null,null,null,199.91512554772143,null,0]
[null,"Umwandlung Verbindlichkeiten für deferred shares in Kapitalrücklage",null,null,null,null,399.83025109544286,null,0]
[null,"Umbuchung von Vorratsvermögen in Sachanlagevermögen",null,null,null,null,161,null,369]
[null,"Umbuchung von Forderungen aus Lieferungen und Leistungen"]
[null,null,"in Finanzanlagen",null,null,null,0,null,6260]
[]
[]
["Auf die nachfolgenden Erläuterungen im Anhang wird verwiesen"]

{"sheet":"CF Deutsch","index":1,"n_rows":92,"n_cols":12,"rows_kept":92,"cut":false,"hidden":false,"merged":[[71,1,71,4],[70,1,70,4],[2,0,2,8],[1,0,1,8],[68,1,68,4],[56,1,56,4],[30,1,30,4],[69,1,69,4],[59,2,59,4],[60,2,60,4]]}
[]
["Carl Zeiss Meditec AG"]
["Konzern-Kapitalflussrechnung (IFRS) 1. Oktober 2014 bis 31. Dezember 2014"]
[]
[null,null,null,null,null,null,"Geschäftsjahr 2014/2015",null,"Geschäftsjahr 2013/2014"]
[null,null,null,null,null,null,"1. Oktober 2014 -",null,"1. Oktober 2013 -"]
[null,null,null,null,null,"Anhang","31. Dezember 2014",null,"31. Dezember 2013"]
[null,null,null,null,null,null,"€ Tsd.",null,{"$f":"+G8","v":"€ Tsd."}]
[]
["Cashflow aus der gewöhnlichen Geschäftstätigkeit:"]
[]
[null,"Konzernergebnis",null,null,null,null,19413,null,21424]
[]
[null,"Anpassung zur Überleitung des Konzernergebnisses"]
[null,"zur Nettoveränderung der liquiden Mittel aus laufender Geschäftstätigkeit:"]
[]
[null,"Ertragsteueraufwand",null,null,null,"(7)",9226,null,10413]
[null,"Ertrag aus der Veräußerung Mikroskopie-Geschäft Optronik",null,null,null,"(3)",null,null,0]
[null,"Zinsergebnis",null,null,null,"(6)",357,null,{"$f":"877-709","v":168}]
[null,"Ergebnis aus At-Equity bewerteten Finanzanlagen",null,null,null,"(7)",null,null,0]
[null,"Ergebnis aus sonstigen Beteiligungen",null,null,null,"(6)",null,null,0]
[null,"Abschreibungen",null,null,null,"(11) (12)",4613,null,4046]
[null,"Wertaufholungen",null,null,null,"(11)",null,null,0]
[null,"Abschreibungen auf Finanzanlagen",null,null,null,"(7)",null,null,0]
[null,"Gewinne/Verluste aus Abgang/Abwertung von Anlagevermögen",null,null,null,null,24,null,-190]
[null,"Erhaltene Dividenden",null,null,null,null,null,null,0]
[null,"Erhaltene Zinsen",null,null,null,null,111,null,116]
[null,"Gezahlte Zinsen",null,null,null,null,-321,null,-289]
[null,"Erstattete Ertragsteuern",null,null,null,null,657,null,985]
[null,"Gezahlte Ertragsteuern",null,null,null,null,-10475,null,-15715]
[null,"Sonstige zahlungsunwirksame Erträge",null,null,null,"(3)",null,null,0]
[]
[null,"Veränderungen des Working Capitals:"]
[]
[null,null,"Forderungen aus Lieferungen und Leistungen",null,null,"(16)",-13436,null,15928]
[null,null,"Vorräte",null,null,"(15)",-10948,null,-15546]
[null,null,"Sonstige Vermögenswerte",null,null,"(14) (17) (18)",-754,null,-5787]
[null,null,"Verbindlichkeiten aus Lieferungen und Leistungen",null,null,null,-13718,null,-16810]
[null,null,"Ertragsteuerverbindlichkeiten",null,null,null,null,null,0]
[null,null,"Rückstellungen und finanzielle Verbindlichkeiten",null,null,"(21) (22) (24)",-331,null,{"$f":"-7117+709","v":-6408},null,null,"Vorjahr angepasst an Zinssaldo Darstellung ab Q4"]
[null,null,"Sonstige Verbindlichkeiten",null,null,"(25)",6700,null,1635]
[]
[null,"Gesamte Anpassungen",null,null,null,null,{"$f":"SUM(G17:G42)","v":-28295},null,{"$f":"SUM(I17:I42)","v":-27454}]
[null,"Netto-Kapitalzufluss aus der gewöhnlichen Geschäftstätigkeit",null,null,null,null,{"$f":"+G12+G43","v":-8882},null,{"$f":"+I12+I43","v":-6030}]
[]
["Cashflow aus der Investitionstätigkeit:"]
[]
[null,"Veränderung liquide Mittel mit Verfügungsbeschränkung",null,null,null,null,0,null,0]
[null,"Investitionen in Sachanlagen",null,null,null,"(12)",-2900,null,-2538]
[null,"Investitionen in sonstige immaterielle Vermögenswerte",null,null,null,"(11)",-1406,null,-64]
[null,"Investitionen in Planvermögen",null,null,null,"(24)",null,null,0]
[null,"Erlöse aus dem Verkauf von Anlagevermögen",null,null,null,null,9,null,403]
[null,"Erwerb von nach der Equity Methode bilanzierten Beteiligungen",null,null,null,null,-1975,null,0]
[null,"Einzahlungen aus Festgeldanlagen"]
[null,"Auszahlungen für Festgeldanlagen"]
[null,"Verkauf von Wertpapieren",null,null,null,"(28)"]
[null,"Erwerb des chirurgischen Geschäftes (Carl Zeiss Surgical GmbH, Carl Zeiss Surgical Inc.) gegen Gewährung von Aktien"]
[null,"Erwerb IOL/OVD - Geschäft IMEX Clinic S.L., Spanien",null,null,null,"(3)",0,null,-716]
[null,"Erwerb Optronik A.S., Türkei, abzgl. erhaltener Finanzmittel",null,null,null,"(3)",0,null,-10843]
[null,null,"(Optronik A.S., Türkei:",null,null,null,null,null,0]
[null,null,"Aaren Scientific Inc., USA:)",null,null,null,null,null,0]
[null,"Einzahlungen aus der Veräußerung des Mikroskopie-Geschäftes der Optronik",null,null,null,null,null,null,0]
[]
[null,"Netto-Kapitalabfluss aus der Investitionstätigkeit",null,null,null,null,{"$f":"SUM(G48:G62)","v":-6272},null,{"$f":"SUM(I48:I62)","v":-13758}]
[]
["Cashflow aus der Finanzierungstätigkeit:"]
[null,"Aufnahme/(Rückzahlung) der kurzfristigen Kredite",null,null,null,null,-334,null,160]
[null,"Aufnahme/(Rückzahlung) der langfristigen Kredite",null,null,null,"(23)",-119,null,-163]
[null,"Rückzahlungen von kurzfristigen Darlehen von nahe stehenden Unternehmen",null,null,null,"(35)"]
[null,"Auszahlung aus der Gewährung kurzfristigen Darlehen an nahe stehenden Unternehmen"]
[null,"Rückzahlungen von langfristigen Darlehen von nahe stehenden Unternehmen",null,null,null,"(26) (35)"]
[null,"Einzahlungen aus der Übernahme von Pensionsverpflichtungen durch die Carl Zeiss Meditec Japan"]
[null,"(Zunahme)/Abnahme der Forderungen aus Finanzausgleich",null,null,null,"(2t) (32)",6519,null,22075]
[null,"Zunahme/(Abnahme) der Verbindlichkeiten aus Finanzausgleich",null,null,null,"(2t) (32)",8527,null,-460]
[null,"Rückzahlung von Wandelschuldverschreibungen der Ioltech"]
[null,"Zunahme/(Abnahme) der Verbindlichkeiten aus Finanzierungsleasing",null,null,null,"(27)",-568,null,-457]
[null,"Einnahmen aus Kapitalerhöhung",null,null,null,"(24)"]
[null,"Kosten der Kapitalerhöhung (vor Steuern)",null,null,null,"(24)"]
[null,"Dividendenzahlung an Minderheitsaktionäre der Carl Zeiss Meditec Co. Ltd. (Japan)",null,null,null,"(13)"]
[null,"Dividendenzahlung an die Aktionäre der Carl Zeiss Meditec AG",null,null,null,"(9)"]
[null,"Erwerb von Anteilen nicht-beherrschender Gesellschafter"]
[]
[null,"Netto-Kapitalzufluss/(-abfluss) aus der Finanzierungstätigkeit",null,null,null,null,{"$f":"SUM(G66:G82)","v":14025},null,{"$f":"SUM(I66:I82)","v":21155}]
[]
["Einfluss von Wechselkursänderungen auf Zahlungsmittel und Zahlungsmitteläquivalente",null,null,null,null,null,{"$f":"-4","v":-4},null,-369]
["Zunahme/(Abnahme) der Zahlungsmittel und Zahlungsmitteläquivalente",null,null,null,null,null,{"$f":"+G44+G64+G83+G85","v":-1133},null,{"$f":"+I44+I64+I83+I85","v":998}]
["Zahlungsmittel und Zahlungsmitteläquivalente am Beginn des Berichtszeitraumes",null,null,null,null,"(19)",10727,null,6286]
["Zahlungsmittel und Zahlungsmitteläquivalente am Ende des Berichtszeitraumes",null,null,null,null,"(19)",{"$f":"+G86+G87","v":9594},null,{"$f":"+I86+I87","v":7284}]
[]
[]
[]
["Der nachfolgende Konzernanhang ist integraler Bestandteil des ungeprüften Konzernabschlusses."]

{"sheet":"CF_AR","index":2,"n_rows":27,"n_cols":8,"rows_kept":27,"cut":false,"hidden":true,"merged":[[0,0,0,7],[1,0,1,7],[2,0,2,7]]}
["Carl Zeiss Meditec AG"]
["selected positions"]
["Consolidated statement of cash flow (US GAAP)"]
[]
[null,null,null,null,null,"1. October 2001 -",null,"1. October 2002 -"]
[null,null,null,null,null,"30. June 2002",null,"30. June 2003"]
[null,null,null,null,null,"Tsd. Euro",null,"Tsd. Euro"]
[]
[]
["Cash flow from operating activities"]
[null,null,"Net income",null,null,{"$f":"+'CF Deutsch'!G12","v":19413},null,{"$f":"+'CF Deutsch'!I12","v":21424}]
[null,null,"Loss on disposal of discontinued operations",null,null,{"$f":"+'CF Deutsch'!#REF!","v":{"$error":"#REF!"}},null,{"$f":"+'CF Deutsch'!#REF!","v":{"$error":"#REF!"}}]
[null,null,"Depreciation and amortisation",null,null,{"$f":"+'CF Deutsch'!#REF!","v":{"$error":"#REF!"}},null,{"$f":"+'CF Deutsch'!I22","v":4046}]
[null,null,"Trade accounts receivable",null,null,{"$f":"+'CF Deutsch'!G35","v":-13436},null,{"$f":"+'CF Deutsch'!I35","v":15928}]
[null,null,"Inventories",null,null,{"$f":"+'CF Deutsch'!G36","v":-10948},null,{"$f":"+'CF Deutsch'!I36","v":-15546}]
[null,null,"Trade accounts payable",null,null,{"$f":"+'CF Deutsch'!G38","v":-13718},null,{"$f":"+'CF Deutsch'!I38","v":-16810}]
[null,null,"Accrued tax expenses","Erhöhung Vorräte",null,{"$f":"+'CF Deutsch'!G39","v":0},null,{"$f":"+'CF Deutsch'!I39","v":0}]
[null,null,"Other accrued expenses and liabilities","(Erhöhung) / Verringerung der aktiven Rechnungs-",null,{"$f":"+'CF Deutsch'!G40","v":-331},null,{"$f":"+'CF Deutsch'!I40","v":-6408}]
[]
["Cash flow from investing activities",null,null,null,null,{"$f":"+'CF Deutsch'!G64","v":-6272},null,{"$f":"+'CF Deutsch'!I64","v":-13758}]
[]
["Cash flow from financing activities"]
[null,"Proceeds from issuance of short-term debt from related parties",null,null,null,{"$f":"+'CF Deutsch'!G69","v":0},null,{"$f":"+'CF Deutsch'!I69","v":0}]
[null,"Increase / (decrease) in liabilities due to Treasury",null,null,null,{"$f":"+'CF Deutsch'!#REF!","v":{"$error":"#REF!"}},null,{"$f":"+'CF Deutsch'!#REF!","v":{"$error":"#REF!"}}]
[null,"(Increase) / decrease in accounts receivable due to Treasury",null,null,null,{"$f":"+'CF Deutsch'!G73","v":6519},null,{"$f":"+'CF Deutsch'!I73","v":22075}]
[]
["Net increase in cash (compared to Oct 1)",null,null,null,null,{"$f":"+'CF Deutsch'!G86","v":-1133},null,{"$f":"+'CF Deutsch'!I86","v":998}]